bitfinex/quotes_SOLUSD_20251009
["timestamp","ask_amount","ask_price","bid_price","bid_amount"]
[1760001532517,10.87647521,221.11,221.04,15.83423814]
[1760001532741,10.87647521,221.11,221.04,16.53423814]
[1760001532949,20.8,221.16,221.05,5.71627481]
[1760001533117,5.73627481,221.16,221.07,5.01627481]
[1760001533312,10.87647521,221.15,221.09,5.01627481]
[1760001533516,10.87647521,221.15,221.07,25.81627481]
[1760001533517,0.72,221.15,221.07,25.81627481]
[1760001533718,10.87647521,221.14,221.08,4.5232495]
[1760001534526,10.87647521,221.14,221.08,16.53137325]
[1760001534740,11.59647521,221.15,221.08,15.83137325]
[1760001535614,11.59647521,221.15,221.08,16.51137325]
[1760001535834,11.59647521,221.15,221.1,4.52284034]
[1760001536032,5.01627481,221.18,221.11,5.69627481]
[1760001536245,0.67,221.19,221.11,5.69627481]
[1760001536449,0.67,221.19,221.13,5.01627481]
[1760001537836,0.67,221.19,221.14,4.52202224]
[1760001538639,10.87647521,221.19,221.14,4.52202224]
[1760001538846,11.54647521,221.19,221.14,4.52202224]
[1760001539736,10.87647521,221.19,221.14,5.20202224]
[1760001539949,0.2,221.21,221.15,5.69627481]
[1760001540119,0.2,221.21,221.17,5.01627481]
[1760001540321,0.2,221.21,221.19,5.01627481]
[1760001540543,0.2,221.21,221.2,0.68]
[1760001541644,0.2,221.21,221.2,5.20079566]
[1760001541945,0.2,221.21,221.17,0.68]
[1760001542128,0.2,221.21,221.2,25.81627481]
[1760001542535,0.2,221.21,221.2,26.49627481]
[1760001543554,0.2,221.21,221.2,31.01707047]
[1760001543755,1e-08,221.22,221.2,31.01707047]
[1760001544049,1e-08,221.22,221.21,0.68]
[1760001545048,1e-08,221.22,221.21,26.49627481]
[1760001545246,1e-08,221.22,221.21,21.48]
[1760001545562,1e-08,221.22,221.21,26.49627481]
[1760001545726,1e-08,221.22,221.21,31.0168661]
[1760001547451,1e-08,221.27,221.25,20.8]
[1760001547656,5.01627481,221.4,221.25,20.8]
[1760001547657,0.67,221.4,221.29,20.8]
[1760001547949,0.67,221.4,221.34,5.01627481]
[1760001548328,0.67,221.39,221.34,5.01627481]
[1760001549460,4.71653365,221.41,221.32,13.62022025]
[1760001549764,0.87,221.41,221.34,4.5179362]
[1760001549960,0.87,221.41,221.34,30.33421101]
[1760001549961,0.67,221.39,221.34,30.33421101]
[1760001551854,0.87,221.35,221.32,13.2910497]
[1760001552073,0.2,221.41,221.35,20.8]
[1760001552241,0.2,221.41,221.38,5.01627481]
[1760001552930,0.2,221.41,221.4,5.01627481]
[1760001553129,0.2,221.41,221.35,20.8]
[1760001553436,0.2,221.41,221.39,20.8]
[1760001553639,0.2,221.41,221.36,5.01627481]
[1760001553855,0.67,221.4,221.37,4.51732393]
[1760001554263,0.67,221.4,221.36,4.51751629]
[1760001554457,0.67,221.4,221.37,20.8]
[1760001554836,0.67,221.39,221.32,13.40245801]
[1760001555158,0.67,221.38,221.3,9.53502763]
[1760001555458,0.67,221.37,221.3,4.51875282]
[1760001555757,0.67,221.37,221.22,22.60119365]
[1760001555758,5.01627481,221.34,221.25,16.31544233]
[1760001555959,5.01627481,221.32,221.23,4.52018261]
[1760001556136,5.01627481,221.3,221.23,4.52018261]
[1760001556336,0.67,221.29,221.23,4.52018261]
[1760001557257,10.87647521,221.27,221.15,0.68]
[1760001557461,0.67,221.32,221.21,5.01627481]
[1760001557764,15.89275002,221.3,221.18,21.48]
[1760001558063,0.67,221.29,221.21,25.81627481]
[1760001558245,0.67,221.28,221.21,25.81627481]
[1760001558746,5.01627481,221.26,221.19,15.82350015]
[1760001558954,0.67,221.25,221.19,15.82350015]
[1760001559344,15.89275002,221.28,221.19,21.51977496]
[1760001559546,15.89275002,221.28,221.21,5.01627481]
[1760001559971,5.01627481,221.4,221.23,9.53645742]
[1760001560143,0.67,221.33,221.25,5.01627481]
[1760001560557,0.67,221.33,221.3,5.01627481]
[1760001560764,10.87647521,221.35,221.3,5.01627481]
[1760001560950,0.67,221.34,221.3,5.01627481]
[1760001561262,0.67,221.33,221.3,5.01627481]
[1760001561566,0.67,221.32,221.3,5.01627481]
[1760001561753,5.68627481,221.31,221.23,4.52018261]
[1760001561947,0.67,221.3,221.23,20.8]
[1760001562148,5.68627481,221.3,221.23,20.8]
[1760001562464,0.67,221.3,221.23,25.81627481]
[1760001562840,10.87647521,221.32,221.23,30.33645106]
[1760001563041,5.01627481,221.29,221.23,4.52017625]
[1760001563560,0.67,221.28,221.23,4.52017625]
[1760001563750,0.67,221.27,221.23,4.52017625]
[1760001563939,0.67,221.26,221.21,15.82182947]
[1760001564854,10.87647521,221.28,221.21,4.52059129]
[1760001565059,0.67,221.25,221.2,4.52074937]
[1760001565264,5.68627481,221.25,221.18,4.52105352]
[1760001565473,0.65,221.24,221.18,4.52105352]
[1760001566868,4.5200002,221.24,221.17,5.01627481]
[1760001567093,0.65,221.23,221.17,5.01627481]
[1760001568064,0.65,221.23,221.17,9.53767926]
[1760001568756,0.65,221.26,221.19,5.01627481]
[1760001570069,10.87647521,221.22,221.13,20.8]
[1760001570269,5.66627481,221.21,221.14,20.8]
[1760001570472,10.87647521,221.22,221.14,21.52]
[1760001570650,10.87647521,221.22,221.15,5.73627481]
[1760001570971,10.87647521,221.22,221.15,0.72]
[1760001571168,10.87647521,221.22,221.15,5.73627481]
[1760001571966,5.66627481,221.21,221.15,4.5216195]
[1760001572169,0.65,221.21,221.15,9.53789431]
[1760001572547,0.65,221.21,221.15,20.84243873]
[1760001572752,10.87647521,221.22,221.15,4.5216195]
[1760001573174,11.52647521,221.26,221.18,5.01627481]
[1760001573475,0.65,221.31,221.24,5.01627481]
[1760001573683,0.65,221.31,221.26,5.01627481]
[1760001574179,11.29382002,221.36,221.26,5.01627481]
[1760001574180,0.65,221.36,221.28,5.01627481]
[1760001574353,0.65,221.36,221.3,5.01627481]
[1760001574548,10.87647521,221.35,221.31,5.01627481]
[1760001574859,0.65,221.34,221.29,5.01627481]
[1760001575052,0.65,221.33,221.27,5.01627481]
[1760001575260,10.87647521,221.33,221.27,5.01627481]
[1760001575457,10.87647521,221.37,221.31,5.01627481]
[1760001576058,10.87647521,221.37,221.32,4.51834447]
[1760001576266,11.07647521,221.41,221.33,0.72]
[1760001576447,11.07647521,221.41,221.26,20.8]
[1760001576448,10.87647521,221.38,221.31,5.01627481]
[1760001576647,0.65,221.37,221.31,5.01627481]
[1760001576889,11.52647521,221.36,221.27,5.01627481]
[1760001577183,10.87647521,221.34,221.27,5.01627481]
[1760001577389,10.87647521,221.38,221.32,5.01627481]
[1760001578175,15.39378626,221.38,221.32,5.01627481]
[1760001578352,10.87647521,221.4,221.36,5.01627481]
[1760001578554,11.07647521,221.41,221.36,5.01627481]
[1760001578751,16.24305445,221.41,221.36,5.01627481]
[1760001579278,0.2,221.41,221.39,5.01627481]
[1760001579646,0.2,221.41,221.4,0.72]
[1760001579847,0.2,221.41,221.35,20.8]
[1760001580052,0.2,221.41,221.4,5.01627481]
[1760001580254,0.2,221.41,221.4,9.53298664]
[1760001580454,0.2,221.41,221.4,10.25298664]
[1760001582355,0.2,221.41,221.4,5.23671183]
[1760001582574,0.2,221.41,221.4,9.53298664]
[1760001582976,0.85,221.41,221.36,5.01627481]
[1760001583183,0.65,221.4,221.36,5.01627481]
[1760001584476,0.65,221.4,221.37,4.51732393]
[1760001585380,0.65,221.4,221.36,25.81627481]
[1760001585381,0.66,221.4,221.36,5.01627481]
[1760001586163,0.2,221.41,221.32,4.51815913]
[1760001586164,0.66,221.39,221.32,4.51815913]
[1760001586366,0.66,221.39,221.32,9.53443394]
[1760001586563,10.87647521,221.38,221.31,4.51847117]
[1760001586775,10.87647521,221.36,221.29,5.01627481]
[1760001586977,0.66,221.35,221.29,5.01627481]
[1760001587294,0.66,221.35,221.29,9.5351349]
[1760001588000,5.01627481,221.3,221.18,10.87647521]
[1760001588170,10.87647521,221.26,221.18,9.53747925]
[1760001588489,5.01627481,221.23,221.14,11.29865298]
[1760001588789,5.01627481,221.21,221.14,5.01627481]
[1760001588956,11.53647521,221.2,221.12,9.63869457]
[1760001589379,21.07367952,221.2,221.12,5.11627481]
[1760001589597,10.87647521,221.17,221.12,0.1]
[1760001589781,15.89275002,221.17,221.12,0.1]
[1760001590060,0.66,221.16,221.12,0.1]
[1760001590291,0.66,221.15,221.12,0.1]
[1760001590596,15.89275002,221.17,221.12,0.1]
[1760001590897,0.66,221.16,221.12,0.1]
[1760001591087,15.89275002,221.17,221.12,0.1]
[1760001591271,0.66,221.16,221.12,0.1]
[1760001591463,20.41422137,221.17,221.12,0.1]
[1760001591780,0.66,221.15,221.12,0.1]
[1760001592891,0.66,221.2,221.12,4.62238534]
[1760001593076,10.87647521,221.19,221.14,3.40341024]
[1760001593385,10.87647521,221.21,221.14,3.40341024]
[1760001593688,10.87647521,221.21,221.15,4.52181777]
[1760001593985,0.66,221.22,221.18,3.40341024]
[1760001594974,0.66,221.21,221.17,4.52124979]
[1760001595178,0.68,221.21,221.16,3.40341024]
[1760001596883,0.68,221.2,221.16,7.92501551]
[1760001597772,0.68,221.2,221.17,3.40341024]
[1760001599572,0.68,221.23,221.17,7.92480149]
[1760001600394,0.68,221.23,221.17,4.52139125]
[1760001600395,4.08341024,221.23,221.17,4.52139125]
[1760001601003,8.60362854,221.23,221.17,4.52139125]
[1760001601708,10.87647521,221.26,221.18,3.40341024]
[1760001602008,11.55647521,221.3,221.24,3.40341024]
[1760001602210,11.55647521,221.3,221.25,3.40341024]
[1760001602375,10.87647521,221.28,221.25,3.40341024]
[1760001602575,10.87647521,221.28,221.21,0.65]
[1760001602799,10.87647521,221.28,221.25,3.40341024]
[1760001603000,0.68,221.28,221.24,3.40341024]
[1760001603181,0.68,221.28,221.23,7.92339935]
[1760001603580,4.51881388,221.3,221.25,3.40341024]
[1760001603581,10.87647521,221.3,221.25,3.40341024]
[1760001603905,0.68,221.37,221.29,3.40341024]
[1760001604111,10.87647521,221.36,221.32,3.40341024]
[1760001604420,10.87647521,221.34,221.27,20.8]
[1760001604708,0.6,221.33,221.28,3.40341024]
[1760001605000,0.6,221.33,221.29,4.51895702]
[1760001607492,0.6,221.33,221.28,3.40341024]
[1760001607787,0.6,221.33,221.29,3.40341024]
[1760001607988,0.6,221.33,221.28,3.40341024]
[1760001608177,0.68,221.32,221.25,3.40341024]
[1760001608378,0.6,221.31,221.26,20.8]
[1760001608595,1.28,221.3,221.2,0.65]
[1760001608804,1.28,221.3,221.23,3.40341024]
[1760001609402,1.28,221.3,221.24,4.5199783]
[1760001610201,0.6,221.29,221.24,4.5199783]
[1760001610576,0.6,221.29,221.23,7.92358007]
[1760001610800,0.6,221.29,221.23,3.40341024]
[1760001611106,0.6,221.29,221.23,7.92359285]
[1760001612012,3.40341024,221.25,221.17,3.40341024]
[1760001612309,0.6,221.24,221.18,4.5210311]
[1760001612693,4.00341024,221.24,221.16,4.05341024]
[1760001612893,0.6,221.23,221.16,4.52148414]
[1760001613098,4.00341024,221.22,221.16,4.52148414]
[1760001613309,4.00341024,221.22,221.16,25.32148414]
[1760001613606,4.00341024,221.22,221.14,7.92523132]
[1760001613607,12.15647521,221.21,221.14,7.92523132]
[1760001613906,3.40341024,221.2,221.15,20.8]
[1760001614087,0.6,221.19,221.15,20.8]
[1760001615203,0.68,221.18,221.12,3.50341024]
[1760001615507,0.68,221.18,221.12,8.02579497]
[1760001616306,0.6,221.19,221.12,8.02579497]
[1760001616504,0.6,221.19,221.16,3.40341024]
[1760001616708,0.6,221.19,221.18,3.40341024]
[1760001616884,0.6,221.19,221.18,0.65]
[1760001617287,0.6,221.19,221.18,4.05341024]
[1760001617928,10.87647521,221.27,221.18,4.05341024]
[1760001617929,0.6,221.27,221.18,4.05341024]
[1760001618116,10.87647521,221.3,221.22,3.40341024]
[1760001618284,10.87647521,221.3,221.23,4.52018261]
[1760001618490,10.87647521,221.32,221.24,4.05341024]
[1760001618789,3.40341024,221.38,221.3,3.40341024]
[1760001619013,4.08341024,221.38,221.3,3.40341024]
[1760001619216,10.87647521,221.37,221.3,3.40341024]
[1760001619424,10.87647521,221.35,221.3,3.40341024]
[1760001619597,11.55647521,221.35,221.3,3.40341024]
[1760001619903,0.68,221.34,221.28,3.40341024]
[1760001620289,0.68,221.34,221.28,7.92238057]
[1760001620497,5.19753828,221.36,221.28,4.51897033]
[1760001620696,5.19753828,221.36,221.29,3.40341024]
[1760001621403,21.0,221.41,221.31,3.40341024]
[1760001621607,21.0,221.41,221.35,3.40341024]
[1760001621608,15.59299989,221.41,221.35,3.40341024]
[1760001621897,11.07647521,221.41,221.35,3.40341024]
[1760001622507,11.07647521,221.41,221.35,7.92104117]
[1760001624196,0.2,221.41,221.39,3.40341024]
[1760001624513,0.2,221.41,221.39,4.05341024]
[1760001625100,0.2,221.41,221.39,8.57019996]
[1760001625619,0.2,221.41,221.39,3.40341024]
[1760001626006,0.2,221.41,221.39,8.58031272]
[1760001626315,0.2,221.41,221.39,3.40341024]
[1760001626494,0.9,221.41,221.33,0.66]
[1760001626699,4.10341024,221.4,221.32,3.40341024]
[1760001627206,0.7,221.4,221.34,3.40341024]
[1760001628016,10.87647521,221.4,221.35,4.51773209]
[1760001628317,4.71662086,221.41,221.35,4.51773209]
[1760001628518,0.2,221.41,221.35,4.51773209]
[1760001628722,0.2,221.41,221.37,3.40341024]
[1760001629225,0.2,221.41,221.38,0.66]
[1760001629903,0.2,221.41,221.4,4.51671183]
[1760001633228,0.2,221.41,221.4,5.17671183]
[1760001633406,0.2,221.41,221.4,8.58012207]
[1760001634629,0.2,221.41,221.38,20.8]
[1760001634630,0.9,221.41,221.37,20.8]
[1760001634817,0.9,221.41,221.38,20.8]
[1760001635120,0.7,221.4,221.33,17.67081846]
[1760001635424,0.2,221.41,221.34,24.20341024]
[1760001635917,0.2,221.41,221.34,3.40341024]
[1760001636092,4.71657109,221.41,221.34,7.92134644]
[1760001636298,3.40341024,221.39,221.34,4.5179362]
[1760001636625,0.7,221.39,221.34,4.5179362]
[1760001639715,1.3,221.39,221.34,4.5179362]
[1760001641212,1.3,221.38,221.33,20.8]
[1760001641523,4.10341024,221.37,221.31,13.26167933]
[1760001641708,4.10341024,221.37,221.32,20.8]
[1760001641909,0.7,221.36,221.32,20.8]
[1760001642340,0.7,221.36,221.32,4.51817345]
[1760001643033,3.40341024,221.37,221.32,4.51817345]
[1760001644027,3.40341024,221.4,221.33,21.46]
[1760001644235,3.40341024,221.38,221.3,3.40341024]
[1760001644434,3.40341024,221.36,221.29,4.51895702]
[1760001644733,3.40341024,221.34,221.29,4.51895702]
[1760001645216,4.07341024,221.36,221.29,4.51895702]
[1760001645528,0.67,221.36,221.29,4.51895702]
[1760001645730,0.67,221.36,221.29,15.81634958]
[1760001646034,14.27988545,221.39,221.28,13.38004948]
[1760001646222,0.67,221.38,221.3,3.40341024]
[1760001646419,4.07341024,221.38,221.3,3.40341024]
[1760001647032,10.87647521,221.39,221.31,21.52]
[1760001647238,10.87647521,221.39,221.32,4.12341024]
[1760001647629,3.40341024,221.4,221.33,4.51814033]
[1760001648127,0.67,221.39,221.29,12.01728806]
[1760001648327,0.67,221.39,221.31,3.40341024]
[1760001648529,0.67,221.39,221.3,4.51875282]
[1760001648530,4.07341024,221.38,221.3,4.51875282]
[1760001648714,3.40341024,221.36,221.3,4.51875282]
[1760001649822,0.67,221.37,221.3,4.51875282]
[1760001649823,5.18733706,221.37,221.3,4.51875282]
[1760001650019,3.40341024,221.35,221.28,20.8]
[1760001650240,0.67,221.34,221.28,20.8]
[1760001650738,0.67,221.34,221.28,24.20341024]
[1760001651133,0.67,221.34,221.28,28.72256853]
[1760001651636,0.67,221.34,221.26,24.72487249]
[1760001651637,0.67,221.33,221.26,24.20341024]
[1760001652015,0.67,221.33,221.26,3.40341024]
[1760001652824,3.40341024,221.31,221.2,0.72]
[1760001653036,10.87647521,221.3,221.21,3.40341024]
[1760001653239,7.92228147,221.3,221.23,3.40341024]
[1760001653422,0.67,221.29,221.22,0.72]
[1760001653621,0.67,221.29,221.23,3.40341024]
[1760001653825,0.67,221.29,221.21,5.00844293]
[1760001653826,11.54647521,221.28,221.21,5.00844293]
[1760001654353,0.67,221.27,221.2,20.8]
[1760001654518,0.67,221.27,221.2,25.80844293]
[1760001654716,0.67,221.27,221.2,5.00844293]
[1760001655021,11.54647521,221.26,221.2,5.00844293]
[1760001655233,4.51977401,221.25,221.2,5.00844293]
[1760001656024,4.51977401,221.25,221.19,26.52844293]
[1760001656549,4.51977401,221.25,221.19,21.52]
[1760001656730,4.51977401,221.25,221.19,26.52844293]
[1760001657038,4.51977401,221.25,221.19,31.04943207]
[1760001657244,11.54647521,221.26,221.19,31.04943207]
[1760001657425,0.67,221.26,221.19,31.04943207]
[1760001657622,12.01672291,221.31,221.22,5.00844293]
[1760001657840,5.23885253,221.3,221.22,5.00844293]
[1760001658029,10.24729546,221.3,221.22,5.00844293]
[1760001658217,16.53573459,221.3,221.22,5.00844293]
[1760001658434,21.54417752,221.3,221.22,5.00844293]
[1760001658828,5.23885253,221.3,221.23,5.00844293]
[1760001659148,4.51916124,221.28,221.22,5.69844293]
[1760001659520,4.51916124,221.28,221.22,10.21876297]
[1760001659731,5.23898513,221.29,221.22,10.21876297]
[1760001660354,0.72,221.29,221.22,10.21876297]
[1760001660645,5.23896109,221.29,221.23,5.00844293]
[1760001661234,0.72,221.29,221.23,5.00844293]
[1760001661439,5.23898226,221.29,221.23,5.00844293]
[1760001662362,5.72844293,221.28,221.21,5.00844293]
[1760001662742,3.75923508,221.4,221.23,5.00844293]
[1760001662944,5.00844293,221.32,221.24,5.00844293]
[1760001663149,5.72844293,221.32,221.24,5.00844293]
[1760001663456,10.24693717,221.32,221.25,5.20977401]
[1760001664164,22.17102296,221.35,221.26,5.00844293]
[1760001664165,135.4,221.31,221.26,5.00844293]
[1760001664470,136.12,221.31,221.26,5.69844293]
[1760001664632,135.4,221.3,221.26,5.69844293]
[1760001664835,135.4,221.3,221.26,5.00844293]
[1760001665263,135.4,221.3,221.26,10.21796791]
[1760001666248,0.72,221.29,221.23,20.8]
[1760001666448,0.72,221.28,221.23,5.00844293]
[1760001666766,136.02,221.27,221.17,4.52140887]
[1760001666937,135.3,221.26,221.19,5.00844293]
[1760001667140,136.02,221.26,221.19,20.8]
[1760001667448,5.23994013,221.25,221.19,30.32943291]
[1760001667642,0.72,221.24,221.19,5.00844293]
[1760001667843,0.72,221.23,221.19,25.80844293]
[1760001668153,0.72,221.23,221.19,30.32944188]
[1760001668354,4.51994013,221.25,221.19,30.32944188]
[1760001668656,140.53958318,221.26,221.19,31.01944188]
[1760001670962,139.81958318,221.26,221.19,30.32944188]
[1760001671143,5.23991757,221.25,221.19,30.32944188]
[1760001671539,0.72,221.24,221.18,5.00844293]
[1760001671763,15.81935259,221.25,221.18,5.00844293]
[1760001671764,0.72,221.23,221.18,5.00844293]
[1760001671964,0.72,221.22,221.18,5.00844293]
[1760001672238,0.4,221.21,221.18,5.69844293]
[1760001672459,0.4,221.2,221.18,0.69]
[1760001672767,0.4,221.2,221.18,5.69844293]
[1760001673276,0.4,221.19,221.18,4.52120444]
[1760001673869,0.4,221.19,221.18,5.21120444]
[1760001674545,0.4,221.19,221.18,10.21964737]
[1760001675844,0.4,221.19,221.18,7.36920937]
[1760001676264,0.4,221.19,221.18,2.84800493]
[1760001676570,0.72,221.19,221.14,0.69]
[1760001676757,5.2407655,221.21,221.14,2.15800493]
[1760001676964,0.72,221.21,221.15,2.15800493]
[1760001677468,5.24060025,221.21,221.15,15.79140775]
[1760001677647,5.24060025,221.21,221.14,0.69]
[1760001677847,0.72,221.21,221.15,2.15800493]
[1760001678067,0.72,221.21,221.16,4.52161331]
[1760001678272,0.72,221.21,221.16,6.67961824]
[1760001679150,5.240659,221.21,221.15,6.67982058]
[1760001679685,0.72,221.21,221.15,6.67982058]
[1760001679864,0.72,221.21,221.15,20.53294199]
[1760001681870,0.72,221.21,221.15,18.37493706]
[1760001682070,0.72,221.21,221.16,2.15800493]
[1760001682648,0.72,221.21,221.15,20.53294199]
[1760001683146,0.4,221.2,221.15,20.53294199]
[1760001683345,0.4,221.2,221.15,21.24294199]
[1760001684884,0.4,221.2,221.15,7.38982058]
[1760001685059,0.4,221.2,221.16,2.86800493]
[1760001686267,0.4,221.2,221.17,4.52140887]
[1760001687274,0.4,221.19,221.17,4.52140887]
[1760001691174,1.06,221.18,221.14,20.8]
[1760001691361,0.4,221.17,221.14,20.8]
[1760001691565,0.4,221.21,221.16,2.15800493]
[1760001691787,0.4,221.21,221.14,20.8]
[1760001691788,0.66,221.26,221.19,2.15800493]
[1760001691989,0.66,221.26,221.19,2.85800493]
[1760001692278,0.66,221.26,221.21,2.15800493]
[1760001692478,0.66,221.26,221.21,2.85800493]
[1760001693159,5.17960578,221.26,221.21,2.85800493]
[1760001693478,10.87647521,221.32,221.21,2.85800493]
[1760001693479,2.15800493,221.35,221.25,2.15800493]
[1760001693657,5.17732393,221.37,221.29,2.15800493]
[1760001693858,5.17732393,221.37,221.29,2.85800493]
[1760001694177,0.66,221.36,221.29,2.85800493]
[1760001694390,0.66,221.35,221.29,2.15800493]
[1760001694587,0.66,221.34,221.24,20.8]
[1760001694876,2.15800493,221.3,221.22,2.15800493]
[1760001695063,2.81800493,221.29,221.21,6.67848066]
[1760001695268,5.17925368,221.28,221.21,6.67848066]
[1760001695973,2.81800493,221.27,221.2,4.52079361]
[1760001696861,2.15800493,221.25,221.19,0.7]
[1760001697064,2.81800493,221.25,221.18,4.52103395]
[1760001697267,7.33792082,221.25,221.18,4.52103395]
[1760001697778,5.17991589,221.25,221.17,28.17940154]
[1760001697972,2.81800493,221.24,221.17,26.02139661]
[1760001698680,2.15800493,221.22,221.14,16.39029809]
[1760001698855,0.66,221.21,221.14,16.39029809]
[1760001699056,0.66,221.21,221.14,41.71231265]
[1760001699454,5.18072707,221.21,221.14,41.71231265]
[1760001699667,0.4,221.2,221.14,25.32201456]
[1760001701984,0.4,221.2,221.16,2.15800493]
[1760001702167,0.4,221.2,221.18,2.15800493]
[1760001702362,0.4,221.2,221.19,0.7]
[1760001702874,0.66,221.29,221.19,0.7]
[1760001703192,2.15800493,221.28,221.2,2.15800493]
[1760001703375,0.66,221.27,221.2,2.15800493]
[1760001703563,4.51956973,221.26,221.2,6.67865687]
[1760001703770,2.15800493,221.24,221.17,4.52129676]
[1760001704066,2.15800493,221.22,221.17,25.32129676]
[1760001704477,2.83800493,221.22,221.17,25.32129676]
[1760001705186,2.15800493,221.24,221.17,25.32129676]
[1760001705493,0.68,221.23,221.17,25.32129676]
[1760001705696,5.20029431,221.23,221.17,25.32129676]
[1760001705987,0.68,221.23,221.17,25.32129676]
[1760001706885,0.68,221.23,221.17,4.52129676]
[1760001707081,2.15800493,221.26,221.18,2.82800493]
[1760001707283,2.15800493,221.26,221.19,0.67]
[1760001707488,5.19945281,221.27,221.2,2.15800493]
[1760001707663,5.19945281,221.27,221.21,4.52059129]
[1760001707864,5.19945281,221.27,221.2,7.34877984]
[1760001708159,0.3,221.26,221.2,7.34877984]
[1760001708367,0.3,221.25,221.2,7.34877984]
[1760001708870,0.98,221.24,221.18,2.15800493]
[1760001709072,0.98,221.24,221.18,6.6791807]
[1760001709272,0.3,221.24,221.18,6.6791807]
[1760001710699,4.82000905,221.24,221.17,21.47]
[1760001710881,4.82000905,221.24,221.17,25.99140546]
[1760001711069,0.3,221.24,221.17,25.32140546]
[1760001711269,0.3,221.24,221.18,2.82800493]
[1760001711469,0.3,221.24,221.19,0.67]
[1760001711678,0.3,221.24,221.2,0.67]
[1760001711899,0.3,221.24,221.21,0.67]
[1760001712229,0.68,221.3,221.23,4.52018261]
[1760001712379,0.68,221.35,221.26,22.95800493]
[1760001712704,0.68,221.35,221.28,2.15800493]
[1760001713478,0.68,221.35,221.28,6.67709369]
[1760001713682,2.83800493,221.35,221.28,6.67709369]
[1760001713882,2.0600407,221.35,221.28,4.51908876]
[1760001715188,6.57780062,221.35,221.27,2.0500407]
[1760001715997,0.66,221.34,221.27,2.0500407]
[1760001716194,0.66,221.34,221.27,6.56934497]
[1760001716396,5.17797624,221.34,221.27,6.56934497]
[1760001716998,1.3800407,221.33,221.27,5.18930427]
[1760001717700,0.66,221.32,221.26,4.51956973]
[1760001718089,1.6800407,221.31,221.24,4.51981577]
[1760001718395,1.3800407,221.29,221.21,32.10121038]
[1760001718609,1.3800407,221.27,221.21,32.10121038]
[1760001718792,1.3800407,221.27,221.21,11.30121038]
[1760001718995,0.66,221.26,221.21,4.52059129]
[1760001719295,1.3800407,221.25,221.21,4.52059129]
[1760001720323,11.59655413,221.31,221.21,4.52059129]
[1760001720324,1.3800407,221.27,221.22,0.68]
[1760001720504,2.0400407,221.27,221.21,4.52059129]
[1760001720700,1.3800407,221.27,221.19,6.58085195]
[1760001720893,0.66,221.26,221.17,4.52124239]
[1760001721215,1.3800407,221.23,221.17,4.52124239]
[1760001721388,135.46,221.3,221.2,20.8]
[1760001721707,139.9788147,221.3,221.22,4.52038694]
[1760001721919,139.9788147,221.3,221.23,0.68]
[1760001722115,1.3800407,221.29,221.22,4.52038694]
[1760001722295,0.66,221.28,221.2,6.58066866]
[1760001722495,1.3800407,221.27,221.2,6.58066866]
[1760001722722,1.3800407,221.25,221.18,20.8]
[1760001722898,0.66,221.24,221.18,20.8]
[1760001723215,1.3800407,221.25,221.18,21.48]
[1760001723390,10.87647521,221.29,221.19,0.68]
[1760001723595,135.76,221.28,221.19,0.68]
[1760001724114,4.51936548,221.27,221.2,4.52079566]
[1760001724517,5.17936548,221.27,221.2,4.52079566]
[1760001724807,6.55940618,221.27,221.2,4.52079566]
[1760001725816,5.89940618,221.27,221.2,4.52079566]
[1760001726113,5.17975731,221.26,221.2,4.52079566]
[1760001726618,5.17975731,221.26,221.18,20.8]
[1760001726619,137.1400407,221.25,221.18,20.8]
[1760001726797,0.66,221.24,221.18,20.8]
[1760001726998,1.3800407,221.22,221.18,20.8]
[1760001727314,2.0400407,221.22,221.18,4.52120229]
[1760001727526,0.66,221.22,221.18,4.52120229]
[1760001727904,2.0400407,221.24,221.17,4.52140887]
[1760001728111,0.66,221.24,221.18,1.3800407]
[1760001728307,135.1,221.25,221.2,1.3800407]
[1760001728503,135.1,221.25,221.2,2.0600407]
[1760001729518,140.27977473,221.25,221.2,1.3800407]
[1760001729694,0.66,221.24,221.2,1.3800407]